bitfinex/quotes_ETHUSD_20250916
["timestamp","ask_amount","ask_price","bid_price","bid_amount"]
[1758038604562,0.002,4467.1,4467.0,13.6946389]
[1758038604763,0.002,4467.1,4467.0,28.1946389]
[1758038605128,0.2911,4467.1,4467.0,25.7798389]
[1758038605465,1.2112,4467.1,4467.0,16.3312]
[1758038605634,1.2112,4467.1,4467.0,20.066]
[1758038606892,1.2112,4467.1,4467.0,22.3046389]
[1758038607672,1.2112,4467.1,4467.0,20.066]
[1758038608606,0.2911,4467.1,4467.0,22.3046389]
[1758038608782,0.002,4467.1,4467.0,22.4158389]
[1758038610044,0.002,4467.1,4467.0,22.7274389]
[1758038610382,0.002,4467.1,4467.0,23.5194389]
[1758038611902,0.002,4467.1,4467.0,23.2078389]
[1758038612600,0.002,4467.1,4467.0,23.5194389]
[1758038614655,0.002,4467.1,4467.0,23.2078389]
[1758038614891,0.2911,4467.1,4467.0,23.2078389]
[1758038615095,0.002,4467.1,4467.0,23.5194389]
[1758038615967,0.002,4467.1,4467.0,26.9543389]
[1758038616169,0.002,4467.1,4467.0,27.0655389]
[1758038617790,0.002,4467.5,4467.4,6.03043846]
[1758038618107,0.002,4467.5,4467.4,9.97663846]
[1758038618263,0.002,4467.5,4467.4,10.3984883]
[1758038618465,0.002,4467.5,4467.4,25.3540883]
[1758038618771,0.002,4467.5,4467.4,25.2706453]
[1758038619298,0.002,4467.5,4467.4,24.7245453]
[1758038620006,0.002,4467.5,4467.4,24.61429546]
[1758038620765,0.002,4467.5,4467.4,25.16039546]
[1758038621065,0.002,4467.5,4467.4,24.61429546]
[1758038621803,0.002,4467.5,4467.4,28.82429546]
[1758038623278,0.2911,4467.5,4467.4,24.67769546]
[1758038623483,0.2911,4467.5,4467.4,19.67569546]
[1758038623484,1.2112,4467.5,4467.4,19.67569546]
[1758038623783,1.2112,4467.5,4467.4,20.50569546]
[1758038624709,1.2112,4467.5,4467.0,1.72]
[1758038624907,0.9201,4467.4,4467.3,2.23848849]
[1758038625074,0.9201,4467.4,4467.3,2.26087337]
[1758038625075,1.2092,4467.4,4467.3,2.26087337]
[1758038625609,1.2092,4467.4,4467.3,2.23848849]
[1758038625975,1.2092,4467.4,4467.3,2.26087337]
[1758038626576,1.2092,4467.4,4467.3,2.23848849]
[1758038626908,1.2092,4467.4,4467.3,6.06848849]
[1758038627108,1.2092,4467.4,4467.3,3.83]
[1758038627313,1.2092,4467.4,4467.3,6.06848857]
[1758038627474,1.2092,4467.4,4467.3,3.83]
[1758038627804,1.2092,4467.4,4467.3,6.06848857]
[1758038628706,1.2092,4467.4,4467.3,20.56848857]
[1758038629111,1.2092,4467.4,4467.3,14.5]
[1758038629313,1.33032,4467.4,4467.3,1.72]
[1758038629523,3.56875846,4467.4,4467.3,1.22]
[1758038629690,3.56875846,4467.4,4467.3,3.726]
[1758038630075,3.56875846,4467.4,4467.3,4.905]
[1758038632834,3.56875846,4467.4,4467.3,4.906]
[1758038633135,1.33232,4467.4,4467.3,4.906]
[1758038633322,1.2112,4467.4,4467.3,4.906]
[1758038634516,0.2911,4467.4,4467.3,7.14448857]
[1758038634825,0.2911,4467.4,4467.3,4.906]
[1758038635030,0.2911,4467.4,4467.3,19.406]
[1758038635538,1.1926,4467.4,4467.3,19.406]
[1758038636537,0.7646,4467.4,4467.3,21.64448857]
[1758038637134,0.3028,4467.4,4467.3,21.64448857]
[1758038637336,0.3028,4467.4,4467.3,19.406]
[1758038637532,0.3028,4467.4,4467.3,21.64448857]
[1758038637739,1.2043,4467.4,4467.3,19.406]
[1758038639847,1.2043,4467.4,4467.3,19.552]
[1758038642048,0.002,4467.4,4467.3,21.79048857]
[1758038642269,0.002,4467.4,4467.3,15.721]
[1758038642560,1.2121,4467.4,4467.3,5.052]
[1758038642909,1.2121,4467.4,4467.3,19.552]
[1758038643512,0.7705,4467.4,4467.3,19.552]
[1758038643723,0.306,4467.4,4467.3,19.552]
[1758038643979,0.002,4467.4,4467.3,22.09438857]
[1758038644109,0.002,4467.4,4467.3,22.58528857]
[1758038644316,0.002,4467.4,4467.3,23.02458857]
[1758038644513,0.002,4467.4,4467.3,26.81658857]
[1758038645607,0.012,4467.9,4467.8,2.23823805]
[1758038645814,0.012,4467.9,4467.8,9.88362043]
[1758038646042,0.012,4467.9,4467.8,11.09533805]
[1758038646242,0.012,4467.9,4467.8,25.59533805]
[1758038648315,0.002,4468.2,4468.1,3.03008777]
[1758038648516,0.002,4468.2,4468.1,6.88246864]
[1758038648749,0.002,4468.2,4468.1,8.09418777]
[1758038648919,0.002,4468.2,4468.1,22.59418777]
[1758038650137,0.002,4468.2,4468.1,22.68382774]
[1758038650877,0.002,4468.2,4468.1,25.68382774]
[1758038652867,0.01,4468.9,4468.7,3.02978727]
[1758038653039,0.01,4468.9,4468.7,11.57878727]
[1758038653379,2.198,4469.8,4469.7,2.23728661]
[1758038653685,2.168,4469.8,4469.7,8.09018661]
[1758038654039,2.168,4469.8,4469.7,22.59018661]
[1758038654257,2.168,4469.8,4469.7,22.39748661]
[1758038655452,2.168,4469.8,4469.7,22.70138661]
[1758038656452,2.168,4469.8,4469.7,22.39748661]
[1758038656853,2.168,4469.8,4469.7,22.70138661]
[1758038658077,2.168,4469.8,4469.7,23.19228661]
[1758038658484,2.168,4469.8,4469.7,23.63158661]
[1758038658997,2.168,4469.8,4469.7,27.42358661]
[1758038659476,2.168,4469.8,4469.7,28.09567554]
[1758038661785,0.24,4470.8,4469.8,6.02923656]
[1758038662085,0.24,4470.8,4469.8,6.95943656]
[1758038662295,0.24,4470.8,4470.7,2.23678618]
[1758038662456,0.24,4470.8,4470.7,7.80515404]
[1758038662815,0.24,4470.8,4470.7,7.78278618]
[1758038663016,0.544,4470.8,4470.7,7.78278618]
[1758038663226,0.544,4470.8,4470.7,3.95578618]
[1758038663389,1.4501,4470.8,4470.7,1.719]
[1758038663712,1.59611,4470.8,4470.7,5.546]
[1758038664098,1.4501,4470.8,4470.7,7.78278618]
[1758038664301,1.4501,4470.8,4470.7,22.28278618]
[1758038664473,0.544,4470.8,4470.7,22.28278618]
[1758038664814,0.5454,4470.8,4470.7,22.28278618]
[1758038665120,1.5022,4470.8,4470.7,22.28278618]
[1758038665891,1.5022,4470.8,4470.7,16.219]
[1758038666304,1.5022,4470.8,4470.7,20.046]
[1758038666507,1.5022,4470.8,4470.7,22.28278618]
[1758038666880,1.5022,4470.8,4470.7,18.45578618]
[1758038667104,1.5022,4470.8,4470.7,22.28278618]
[1758038667315,1.5022,4470.8,4470.7,20.046]
[1758038667492,1.5022,4470.8,4470.7,22.28278618]
[1758038669305,0.24,4470.8,4470.7,22.58278618]
[1758038669678,0.24,4470.8,4470.7,22.28278618]
[1758038670717,0.24,4470.8,4470.7,22.58278618]
[1758038670917,0.24,4470.8,4470.7,23.50278618]
[1758038671117,0.24,4470.8,4470.7,22.58278618]
[1758038671835,0.5454,4470.8,4470.7,22.28278618]
[1758038672333,0.24,4470.8,4470.7,22.39398618]
[1758038672546,1.0358,4470.8,4470.7,18.56698618]
[1758038672705,1.5022,4470.8,4470.7,16.3302]
[1758038672908,1.5022,4470.8,4470.7,20.045]
[1758038673498,1.5022,4470.8,4470.7,22.28178618]
[1758038674823,0.24,4470.8,4470.7,22.28178618]
[1758038675208,0.24,4470.8,4470.7,18.45578618]
[1758038675415,0.5454,4470.8,4470.7,22.28078618]
[1758038676359,0.24,4470.8,4470.7,22.28078618]
[1758038676504,0.24,4470.8,4470.7,22.39198618]
[1758038677036,0.24,4470.8,4470.7,26.95328618]
[1758038677235,0.24,4470.8,4470.7,33.07029977]
[1758038677406,0.24,4470.8,4470.7,26.48398618]
[1758038678103,0.24,4470.8,4470.7,27.08558618]
[1758038678915,0.5454,4470.8,4470.7,25.39198618]
[1758038679117,0.24,4470.8,4470.7,25.69198618]
[1758038679448,0.24,4470.8,4470.7,26.16128618]
[1758038679604,0.24,4470.8,4470.7,25.69198618]
[1758038680206,0.5454,4470.8,4470.7,25.39198618]
[1758038680605,0.24,4470.8,4470.7,25.39198618]
[1758038680813,0.24,4470.8,4470.7,25.69198618]
[1758038682201,0.24,4470.8,4470.7,25.39198618]
[1758038682202,0.5454,4470.8,4470.7,25.39198618]
[1758038682435,0.24,4470.8,4470.7,25.39198618]
[1758038682755,0.24,4470.8,4470.7,25.69198618]
[1758038682915,0.24,4470.8,4470.7,25.39098618]
[1758038683239,1.5022,4470.8,4470.7,16.3302]
[1758038683411,1.5022,4470.8,4470.7,20.043]
[1758038683847,1.5022,4470.8,4470.7,22.27978618]
[1758038684041,1.5022,4470.8,4470.7,20.043]
[1758038685039,0.24,4470.8,4470.7,22.39098618]
[1758038685559,0.24,4470.8,4470.7,22.69098618]
[1758038686558,0.24,4470.8,4470.7,22.39098618]
[1758038686966,1.5022,4470.8,4470.7,22.39098618]
[1758038687633,1.5042,4470.8,4470.7,22.39098618]
[1758038687968,1.5042,4470.8,4470.7,18.56698618]
[1758038688167,1.5042,4470.8,4470.7,22.39098618]
[1758038689231,1.5042,4470.8,4470.7,18.56698618]
[1758038689661,1.5042,4470.8,4470.7,22.39098618]
[1758038690276,0.242,4470.8,4470.7,22.69098618]
[1758038690564,0.242,4470.8,4470.7,23.16028618]
[1758038690970,0.242,4470.8,4470.7,22.39098618]
[1758038691134,0.242,4470.8,4470.7,22.69098618]
[1758038693473,0.242,4470.8,4470.7,23.16028618]
[1758038694462,0.01,4470.9,4470.8,2.23673615]
[1758038694663,0.002,4471.3,4471.2,2.23653605]
[1758038695000,0.002,4471.3,4471.2,6.50600141]
[1758038695293,0.002,4471.3,4471.2,20.98363605]
[1758038697485,0.2909,4471.3,4471.2,20.67073605]
[1758038697684,1.2376,4471.3,4471.2,16.84773605]
[1758038698099,1.2376,4471.3,4471.2,20.67073605]
[1758038699301,0.002,4471.3,4471.2,20.98363605]
[1758038700081,0.002,4471.3,4471.2,20.67073605]
[1758038700493,0.3064,4471.3,4471.2,20.67073605]
[1758038700705,0.3064,4471.3,4471.2,20.66973605]
[1758038700898,0.002,4471.3,4471.2,20.66973605]
[1758038701173,0.002,4471.3,4471.2,17.14303605]
[1758038701372,0.002,4471.3,4471.2,20.66973605]
[1758038702013,0.002,4471.3,4471.2,20.96503605]
[1758038702577,0.002,4471.3,4471.2,21.43793605]
[1758038703218,0.002,4471.3,4471.2,20.66973605]
[1758038703512,1.2228,4471.3,4471.2,18.4332]
[1758038703725,1.2228,4471.3,4471.2,20.1512]
[1758038704019,1.2228,4471.3,4471.2,22.38773605]
[1758038704201,1.2228,4471.3,4471.2,22.27653605]
[1758038705298,1.2228,4471.3,4471.2,20.04]
[1758038705599,1.2228,4471.3,4471.2,22.27653605]
[1758038706015,0.3064,4471.3,4471.2,18.45453605]
[1758038706231,1.2228,4471.3,4471.2,22.27653605]
[1758038706583,1.2228,4471.3,4471.2,1.718]
[1758038706890,1.2228,4471.3,4471.2,7.77553605]
[1758038707217,1.2228,4471.3,4471.2,5.539]
[1758038707418,1.2228,4471.3,4471.2,7.77553605]
[1758038707585,0.3064,4471.3,4471.2,7.77553605]
[1758038707785,0.002,4471.3,4471.2,7.77553605]
[1758038707983,0.002,4471.3,4471.2,22.27553605]
[1758038709128,0.3064,4471.3,4471.2,22.27553605]
[1758038709636,1.2228,4471.3,4471.2,20.039]
[1758038710620,1.2228,4471.3,4471.2,16.218]
[1758038710953,3.61156603,4471.3,4471.2,1.719]
[1758038711096,3.82096113,4471.3,4471.2,5.54]
[1758038711291,4.03031518,4471.3,4471.2,5.54]
[1758038711919,9.12931788,4471.3,4471.2,5.54]
[1758038712125,9.12931788,4471.3,4471.2,1.719]
[1758038712447,12.61164319,4471.3,4471.2,1.719]
[1758038712641,12.61164319,4471.3,4471.2,5.54]
[1758038713192,12.61164319,4471.3,4470.5,1.719]
[1758038713193,5.23653605,4471.2,4470.5,1.719]
[1758038713434,10.64023891,4470.6,4470.5,1.719]
[1758038713658,11.9752144,4470.6,4470.5,5.54]
[1758038713811,11.9752144,4470.6,4470.5,1.719]
[1758038714017,11.9752144,4470.6,4470.5,5.54]
[1758038715230,11.76603401,4470.6,4470.5,5.54]
[1758038715530,1.70467988,4470.6,4470.5,5.54]
[1758038715747,0.3044,4470.6,4470.5,5.54]
[1758038715926,1.2208,4470.6,4470.5,5.54]
[1758038716124,0.3044,4470.6,4470.5,5.54]
[1758038716440,3.4805,4471.0,4470.6,2.23678853]
[1758038716441,0.1112,4471.0,4470.6,2.23678853]
[1758038716628,0.03,4470.9,4470.7,3.84336786]
[1758038716837,0.1412,4471.0,4470.8,0.2953]
[1758038717031,0.03,4471.0,4470.9,3.84336686]
[1758038717336,0.03,4471.0,4470.9,18.34336686]
[1758038717539,0.03,4471.0,4470.9,18.321]
[1758038717736,2.57103609,4471.0,4470.9,14.5]
[1758038717950,2.23683621,4470.6,4470.5,1.719]
[1758038718155,3.45763621,4470.6,4470.5,5.54]
[1758038718549,0.3044,4470.6,4470.5,5.54]
[1758038718856,0.5105,4471.0,4470.5,5.54]
[1758038719150,2.54123621,4470.6,4470.5,1.719]
[1758038719366,4.02707477,4470.6,4470.5,5.54]
[1758038719855,7.02707477,4470.6,4470.5,5.54]
[1758038720051,7.02707477,4470.6,4470.5,1.719]
[1758038720421,7.02707477,4470.6,4470.5,5.54]
[1758038720621,7.23576837,4470.6,4470.5,5.54]
[1758038720854,2.23713646,4470.0,4469.9,1.719]
[1758038721031,5.23718651,4469.9,4469.8,0.001]
[1758038721233,5.26718651,4469.9,4469.8,2.552]
[1758038721430,0.03,4469.9,4469.8,2.552]
[1758038721938,2.26718651,4469.9,4469.8,2.552]
[1758038722135,2.57158651,4469.9,4469.8,2.552]
[1758038722646,3.48798651,4469.9,4469.8,2.552]
[1758038722960,4.03828923,4469.9,4469.8,2.552]
[1758038723604,7.03828923,4469.9,4469.8,2.552]
[1758038723967,7.03828923,4469.9,4469.8,0.001]
[1758038725102,7.24666063,4469.9,4469.8,0.001]
[1758038725282,7.45489635,4469.9,4469.8,0.001]
[1758038726156,7.24659279,4469.9,4469.8,0.001]
[1758038726885,7.03828923,4469.9,4469.8,0.001]
[1758038733128,6.81058942,4469.9,4469.8,0.001]
[1758038733328,6.12188923,4469.9,4469.8,0.001]
[1758038733541,5.81748923,4469.9,4469.8,0.001]
[1758038733744,5.26718651,4469.9,4469.8,0.001]
[1758038735733,3.03,4469.9,4469.8,0.3082]
[1758038735934,5.26718651,4469.9,4469.8,0.001]
[1758038737397,3.03,4469.9,4469.8,0.001]
[1758038737598,3.03,4469.9,4469.8,1.2221]
[1758038737599,0.1412,4469.9,4469.8,1.2221]
[1758038738402,0.1412,4469.9,4469.8,1.24447236]
[1758038738754,0.1412,4469.9,4469.8,1.2221]
[1758038739278,0.03,4469.9,4469.8,3.45933656]
[1758038739595,0.1112,4470.3,4470.2,2.23703637]
[1758038739885,0.03,4470.6,4470.4,2.2369301]
[1758038740068,0.03,4470.6,4470.5,14.52236886]
[1758038740262,0.03,4470.6,4470.5,15.7211]
[1758038740477,0.002,4471.2,4470.6,2.23678996]
[1758038740665,0.03,4471.1,4470.7,4.2846]
[1758038740872,0.03,4471.1,4471.0,0.3072]
[1758038742577,0.03,4471.1,4471.0,0.7718]
[1758038742782,0.03,4471.1,4471.0,1.2211]
[1758038744598,0.03,4471.1,4471.0,15.74346636]
[1758038744765,2.57048607,4471.1,4471.0,14.5]
[1758038744970,1.72649895,4471.1,4470.7,3.82]
[1758038745204,3.48199899,4471.1,4470.7,3.82]
[1758038745366,2.236645,4471.0,4470.8,14.5]
[1758038745562,2.54058612,4470.9,4470.8,14.5]
[1758038745766,2.57058612,4470.9,4470.8,3.819]
[1758038746004,2.57058612,4470.9,4469.6,0.4656]
[1758038746005,4.7263196,4470.9,4469.6,0.001]
[1758038746305,2.23718651,4469.9,4469.8,2.05]
[1758038746474,2.57108651,4469.9,4469.8,2.05]
[1758038746890,6.48258651,4469.9,4469.8,2.05]
[1758038747091,7.35455564,4469.9,4469.8,2.05]
[1758038747295,7.56335863,4469.9,4469.8,2.05]
[1758038747495,7.35455564,4469.9,4469.8,2.05]
[1758038750517,7.56339679,4469.9,4469.8,2.05]
[1758038751235,6.65189679,4469.9,4469.8,2.05]
[1758038751605,6.44305564,4469.9,4469.8,2.05]
[1758038752156,7.35455564,4469.9,4469.8,2.05]
[1758038752366,7.77225013,4469.9,4469.8,0.001]
[1758038752504,8.25348572,4469.9,4469.8,0.001]
[1758038752697,8.25348572,4469.9,4469.4,0.001]
[1758038752698,2.23738673,4469.5,4469.4,0.001]
[1758038752899,2.23738673,4469.5,4467.9,1.719]
[1758038752900,3.0,4469.4,4467.9,1.719]
[1758038753098,5.54153705,4469.0,4467.9,3.61]
[1758038753309,4.54059449,4469.0,4467.9,3.61]
[1758038753509,21.19020218,4468.9,4467.9,3.61]
[1758038753723,3.0,4468.7,4467.9,3.61]
[1758038753963,0.20883414,4468.6,4467.9,3.61]
[1758038754469,2.23796658,4468.4,4467.9,3.61]
[1758038754615,3.20883414,4468.6,4467.9,3.61]
[1758038754616,2.23803768,4468.2,4467.9,3.61]
[1758038756558,0.03,4468.3,4468.1,0.7923]
[1758038756712,2.26802497,4468.3,4468.1,0.7923]
[1758038756919,2.23803768,4468.2,4468.1,0.01]
[1758038757540,0.03,4468.3,4468.1,0.011]
[1758038757930,2.52573768,4468.2,4468.1,0.011]
[1758038758357,2.55573768,4468.2,4468.1,0.011]
[1758038758717,0.03,4468.2,4468.1,0.3186]
[1758038759047,3.03,4468.5,4468.1,0.3186]
[1758038759252,2.23803768,4468.2,4468.1,0.3186]
[1758038759555,2.26803768,4468.2,4468.1,0.011]
[1758038759854,0.03,4468.2,4468.1,0.011]
[1758038760053,2.55793768,4468.2,4468.1,0.011]
[1758038760251,0.3199,4468.2,4468.1,0.011]
[1758038760852,3.51513768,4468.2,4468.1,0.011]
[1758038761043,4.23182059,4468.2,4468.1,0.011]
[1758038761949,3.27462059,4468.2,4468.1,0.011]
[1758038762175,1.03658291,4468.2,4468.1,0.011]
[1758038762577,2.26803768,4468.2,4468.1,0.3186]
[1758038762744,2.55793768,4468.2,4468.1,0.011]
[1758038762943,3.51513768,4468.2,4468.1,0.011]
[1758038763143,22.57396236,4468.2,4468.1,0.011]
[1758038763437,26.60131203,4468.2,4468.1,0.011]
[1758038763640,2.23818796,4467.9,4467.8,0.12]
[1758038763951,9.47391609,4467.9,4467.8,1e-08]
[1758038764148,11.20105366,4467.9,4467.8,1e-08]
[1758038764351,11.20094879,4467.9,4467.8,1e-08]
[1758038766179,10.51254392,4467.9,4467.8,1e-08]
[1758038766361,12.73050273,4467.9,4467.8,1e-08]
[1758038767080,12.76050273,4467.9,4467.8,1e-08]
[1758038768054,7.98430273,4467.9,4467.8,1e-08]
[1758038768256,12.76013548,4467.9,4467.8,1e-08]
[1758038768478,13.44741381,4467.9,4467.8,1e-08]
[1758038770280,13.44721067,4467.9,4467.8,1e-08]
[1758038770480,13.44707933,4467.9,4467.8,1e-08]
[1758038770681,13.44707933,4467.9,4466.2,1.72]
[1758038770687,2.23868902,4466.9,4466.2,1.72]
[1758038770881,21.77524457,4466.9,4466.2,1.72]
[1758038771080,22.06514457,4466.9,4466.2,1.72]
[1758038771286,23.02234457,4466.9,4466.2,1.72]
[1758038771485,26.37144457,4466.9,4466.2,1.72]
[1758038771683,25.88414457,4466.9,4466.2,1.72]
[1758038773003,5.71641989,4466.9,4466.2,1.72]
[1758038773208,5.71641989,4466.9,4466.8,0.7874]
[1758038773209,5.26868902,4466.9,4466.8,0.7874]
[1758038773824,3.03,4466.9,4466.8,1.2361]
[1758038774826,5.26868902,4466.9,4466.8,0.3086]
[1758038774987,5.26868902,4466.9,4466.8,0.001]
[1758038775398,5.26868902,4466.9,4466.8,0.3086]
[1758038776751,5.26868902,4466.9,4466.8,0.001]
[1758038777325,6.01941992,4466.9,4466.8,0.001]
[1758038777494,6.30931992,4466.9,4466.8,0.001]
[1758038778033,6.01941992,4466.9,4466.8,0.001]
[1758038778324,5.26868902,4466.9,4466.8,0.001]
[1758038779083,5.55858902,4466.9,4466.8,0.001]
[1758038779891,5.26868902,4466.9,4466.8,0.001]
[1758038780221,5.76733666,4466.9,4466.8,0.001]
[1758038780423,6.72453666,4466.9,4466.8,0.001]
[1758038780608,7.66894611,4466.9,4466.8,0.001]
[1758038781432,8.35878225,4466.9,4466.8,0.001]
[1758038782220,8.9616676,4466.9,4466.8,0.001]
[1758038782422,8.35878225,4466.9,4466.8,0.001]
[1758038782800,8.96072314,4466.9,4466.8,0.001]
[1758038783500,8.35878225,4466.9,4466.8,0.001]
[1758038784017,9.15078225,4466.9,4466.8,0.001]
[1758038784711,9.95020724,4466.9,4466.8,0.001]
[1758038784909,9.15078225,4466.9,4466.8,0.001]
[1758038787526,12.96878225,4466.9,4466.8,0.001]
[1758038788326,12.96618225,4466.9,4466.8,0.001]
[1758038788532,7.40200752,4466.9,4466.8,0.001]
[1758038788709,12.02308251,4466.9,4466.8,0.001]
[1758038788908,11.22000752,4466.9,4466.8,0.001]
[1758038789930,11.68270752,4466.9,4466.8,0.001]
[1758038790625,7.40200752,4466.9,4466.8,0.001]
[1758038790827,10.93010752,4466.9,4466.8,0.001]
[1758038791042,7.11210752,4466.9,4466.8,0.3057]
[1758038792009,3.77050404,4466.9,4466.8,1.26]
[1758038792269,6.47079807,4466.9,4466.8,0.001]
[1758038792432,7.40079807,4466.9,4466.8,0.001]
[1758038792617,2.23888951,4466.5,4466.4,0.001]
[1758038792812,11.19311915,4466.5,4466.4,0.001]
[1758038793013,12.42621915,4466.5,4466.4,0.001]
[1758038793216,12.42621915,4466.5,4465.9,1e-08]
[1758038793217,2.23914017,4466.0,4465.9,1e-08]
[1758038793550,11.19354509,4466.0,4465.9,1e-08]
[1758038793721,12.56307947,4466.0,4465.9,1e-08]
[1758038794126,13.77002156,4466.0,4465.9,1e-08]
[1758038795020,12.56307947,4466.0,4465.9,1e-08]
[1758038795621,13.7692721,4466.0,4465.9,1e-08]
[1758038795833,12.56307947,4466.0,4465.9,1e-08]
[1758038796419,13.76897047,4466.0,4465.9,1e-08]
[1758038796728,12.56307947,4466.0,4465.9,1e-08]
[1758038799076,12.56316902,4466.0,4465.9,1e-08]
[1758038799282,13.35516902,4466.0,4465.9,1e-08]
[1758038800346,2.23954134,4465.2,4464.8,0.12]
[1758038800650,10.18016278,4465.2,4464.8,0.12]
[1758038800850,11.41326278,4465.2,4464.8,0.12]
[1758038801172,2.23964165,4465.0,4464.8,0.12]
[1758038801371,9.98630896,4465.0,4464.8,0.12]
[1758038801550,2.240043,4464.2,4464.1,0.01]
[1758038801888,11.33695621,4464.2,4464.1,0.01]
[1758038802083,11.21981031,4464.2,4464.1,0.01]
[1758038802472,10.73885941,4464.2,4464.1,0.01]
[1758038802674,10.73885941,4464.2,4464.1,1e-08]
[1758038802675,11.53085941,4464.2,4464.1,1e-08]
[1758038802986,14.76542505,4464.2,4464.1,1e-08]
[1758038803347,13.5615805,4464.2,4464.1,1e-08]
[1758038803990,14.36341511,4464.2,4464.1,1e-08]
[1758038804357,13.5615805,4464.2,4464.1,1e-08]
[1758038806152,13.5625805,4464.2,4464.1,1e-08]
[1758038806503,14.76332247,4464.2,4464.1,1e-08]
[1758038807029,10.94532247,4464.2,4464.1,1e-08]
[1758038807237,14.76332247,4464.2,4464.1,1e-08]
[1758038807629,13.5625805,4464.2,4464.1,1e-08]
[1758038808046,12.6325805,4464.2,4464.1,1e-08]
[1758038808248,9.61471685,4464.2,4464.1,1e-08]
[1758038808442,12.32832493,4464.2,4464.1,1e-08]
[1758038809049,4.71832493,4464.2,4464.1,0.30470001]
[1758038809249,6.29730546,4464.2,4464.1,0.78490001]
[1758038809547,2.47930546,4464.2,4464.1,0.78490001]
[1758038809764,6.29730546,4464.2,4464.1,1.25900001]
[1758038810063,9.29730546,4464.2,4464.1,0.78490001]
[1758038810216,9.77884328,4464.2,4464.1,0.78490001]
[1758038810424,9.77884328,4464.2,4464.1,1.25900001]
[1758038810844,5.96084328,4464.2,4464.1,1.25900001]
[1758038811045,9.29730546,4464.2,4464.1,1.25900001]
[1758038811225,0.23926246,4464.2,4464.1,1.25900001]
[1758038811662,2.47930546,4464.2,4464.1,1.25900001]
[1758038812927,2.270043,4464.2,4464.1,1.25900001]
[1758038813124,0.03,4464.2,4464.1,1.25900001]
[1758038813319,2.270043,4464.2,4464.1,1.25900001]
[1758038813558,0.03,4464.2,4464.1,1.25900001]
[1758038813731,0.03,4464.2,4464.1,1.26000001]
[1758038813935,2.270043,4464.2,4464.1,1.26000001]
[1758038814138,2.272043,4464.2,4464.1,1.26000001]
[1758038815357,2.48048354,4464.2,4464.1,1.26000001]
[1758038815823,3.2525278,4464.2,4464.1,0.00100001]
[1758038816028,7.3704278,4464.2,4464.1,0.00100001]
[1758038816246,7.85073136,4464.2,4464.1,0.00100001]
[1758038816452,10.85073136,4464.2,4464.1,0.00100001]
[1758038816764,12.74602278,4464.2,4464.1,0.00100001]
[1758038816974,0.92923552,4464.2,4464.1,0.30190001]
[1758038817139,0.032,4464.2,4464.1,1.24550001]
[1758038817355,2.272043,4464.2,4464.1,1.24550001]
[1758038817556,2.272043,4464.2,4464.1,0.30190001]
[1758038817762,6.31345367,4464.2,4464.1,0.30190001]
[1758038818157,5.272043,4464.2,4464.1,0.30190001]
[1758038818360,5.48061107,4464.2,4464.1,0.30190001]
[1758038818674,9.089043,4464.2,4464.1,0.79950001]
[1758038819379,9.29767932,4464.2,4464.1,0.30190001]
[1758038819569,9.089043,4464.2,4464.1,0.76460001]
[1758038820379,9.2977304,4464.2,4464.1,0.30190001]
[1758038820585,5.4807304,4464.2,4464.1,0.30190001]
[1758038820749,9.2977304,4464.2,4464.1,0.30190001]
[1758038821584,3.2406874,4464.2,4464.1,1.19540001]
[1758038821782,3.032,4464.2,4464.1,1.19540001]
[1758038822169,5.272043,4464.2,4464.1,0.76460001]
[1758038822375,3.032,4464.2,4464.1,1.19540001]
[1758038823682,0.144,4464.2,4464.1,1.19540001]
[1758038823883,0.144,4464.2,4464.1,3.43549319]
[1758038824186,0.032,4464.2,4464.1,17.93549319]
[1758038824548,0.1132,4464.7,4464.1,17.93549319]
[1758038824549,0.002,4464.7,4464.2,2.240043]
[1758038824772,0.002,4464.7,4464.6,2.23984231]
[1758038824975,0.002,4464.7,4464.6,8.08754231]
[1758038825187,0.002,4464.7,4464.6,23.48104231]
[1758038826605,0.002,4464.7,4464.6,21.2412]
[1758038826771,0.002,4464.7,4464.6,23.48104231]
[1758038828011,0.002,4464.7,4464.6,20.3477]
[1758038828212,0.002,4464.7,4464.6,16.5317]
[1758038828418,2.24179214,4464.7,4464.6,16.5317]
[1758038828710,2.24179214,4464.7,4464.6,2.0317]
[1758038828915,0.002,4464.7,4464.6,2.0317]
[1758038830011,0.002,4464.7,4464.6,2.9252]
[1758038830576,0.002,4464.7,4464.6,5.16504231]
[1758038831192,0.002,4464.7,4464.6,19.66504231]
[1758038832310,0.002,4464.7,4464.6,17.4252]
[1758038832614,2.24179214,4464.7,4464.6,5.538]
[1758038833584,0.002,4464.7,4464.6,5.8477]
[1758038834879,0.002,4464.7,4464.6,6.3104]
[1758038835079,0.002,4464.7,4464.6,6.7412]
[1758038835387,0.002,4464.7,4464.6,8.98104231]
[1758038835902,0.002,4464.7,4464.6,6.7412]
[1758038836073,0.002,4464.7,4464.6,8.98104231]
[1758038836280,0.002,4464.7,4464.6,6.7412]
[1758038836477,0.002,4464.7,4464.6,8.98104231]
[1758038838526,0.002,4464.7,4464.6,23.48104231]
[1758038838686,0.002,4464.7,4464.6,21.2412]
[1758038838889,0.002,4464.7,4464.6,23.48104231]
[1758038839123,0.002,4464.7,4464.6,21.2412]
[1758038839308,0.002,4464.7,4464.6,23.48104231]
[1758038840134,0.002,4464.7,4464.6,23.59224231]
[1758038842337,0.002,4464.7,4464.6,9.09224231]
[1758038842829,0.002,4464.7,4464.6,23.59224231]
[1758038844303,0.002,4464.7,4464.6,20.9216]